bitfinex/quotes_BTCUSD_20240902
["timestamp","ask_amount","ask_price","bid_price","bid_amount"]
[1725239132592,0.173857,57519.0,57518.0,0.002]
[1725239132805,0.3477,57521.0,57519.0,0.002]
[1725239133039,0.173855,57519.0,57518.0,0.00497369]
[1725239133274,0.521557,57520.0,57519.0,0.002]
[1725239133492,0.173856,57519.0,57515.0,0.173867]
[1725239133720,0.347689,57523.0,57522.0,0.002]
[1725239133934,0.173845,57523.0,57522.0,0.002]
[1725239134146,0.173845,57523.0,57521.0,0.002]
[1725239134419,0.173845,57523.0,57519.0,0.173854]
[1725239134631,0.173845,57523.0,57521.0,0.002]
[1725239135084,0.521513,57525.0,57521.0,0.002]
[1725239135313,0.173835,57526.0,57523.0,0.002]
[1725239135533,0.173837,57525.0,57523.0,0.002]
[1725239136178,0.173837,57525.0,57520.0,0.17385]
[1725239137037,0.173837,57525.0,57521.0,0.002]
[1725239137243,0.0272773,57524.0,57521.0,0.175849]
[1725239137877,0.0272773,57524.0,57523.0,0.002]
[1725239138104,0.0272773,57524.0,57523.0,0.175843]
[1725239138534,0.0272773,57524.0,57523.0,0.002]
[1725239140290,0.0272773,57524.0,57522.0,0.173846]
[1725239140499,0.0272773,57524.0,57523.0,0.002]
[1725239140947,0.0280953,57524.0,57523.0,0.002]
[1725239141156,0.0280953,57524.0,57523.0,0.175843]
[1725239141406,0.0280953,57524.0,57523.0,0.002]
[1725239141622,0.0280953,57524.0,57523.0,0.175843]
[1725239142515,0.0280953,57524.0,57523.0,0.173843]
[1725239142742,0.0280953,57524.0,57523.0,0.175843]
[1725239142949,0.0280953,57524.0,57523.0,0.002]
[1725239143159,0.0280953,57524.0,57523.0,0.175843]
[1725239144072,0.0280953,57524.0,57523.0,0.00496536]
[1725239144294,0.66454066,57524.0,57523.0,0.00496536]
[1725239144564,0.66454066,57524.0,57518.0,0.0008998]
[1725239144565,0.521566,57519.0,57518.0,0.0008998]
[1725239144773,1.37858989,57519.0,57518.0,0.0008998]
[1725239145218,1.41251646,57519.0,57518.0,0.0008998]
[1725239145437,1.55376811,57519.0,57518.0,0.0008998]
[1725239145908,2.02421154,57519.0,57518.0,0.0008998]
[1725239146133,2.48525254,57519.0,57518.0,0.0008998]
[1725239147223,2.43612011,57519.0,57518.0,0.0008998]
[1725239148515,2.44294929,57519.0,57518.0,0.0008998]
[1725239148950,2.30169764,57519.0,57518.0,0.0008998]
[1725239150282,1.84930089,57519.0,57518.0,0.0008998]
[1725239150518,1.50158989,57519.0,57518.0,0.0008998]
[1725239151606,1.47858989,57519.0,57518.0,0.0008998]
[1725239151821,0.969277,57519.0,57518.0,0.0008998]
[1725239152245,1.13087889,57519.0,57518.0,0.0008998]
[1725239153763,0.969277,57519.0,57518.0,0.0008998]
[1725239154624,1.13087889,57519.0,57518.0,0.00879762]
[1725239154877,1.13087889,57519.0,57518.0,0.0008998]
[1725239157230,1.47858989,57519.0,57518.0,0.0008998]
[1725239157491,1.51252247,57519.0,57518.0,0.0008998]
[1725239160553,1.66385652,57519.0,57518.0,0.0008998]
[1725239160802,1.66385652,57519.0,57501.0,0.0008998]
[1725239160803,0.005,57510.0,57501.0,0.0008998]
[1725239161025,1.77025989,57502.0,57501.0,0.0008998]
[1725239161268,3.08545889,57502.0,57501.0,0.0008998]
[1725239161481,2.95013052,57502.0,57501.0,0.0008998]
[1725239161693,3.07313052,57502.0,57501.0,0.0008998]
[1725239161913,3.15127754,57502.0,57501.0,0.0008998]
[1725239162150,3.07313052,57502.0,57501.0,0.0008998]
[1725239162377,3.12520532,57502.0,57501.0,0.0008998]
[1725239163504,3.07313052,57502.0,57501.0,0.0008998]
[1725239163727,3.07313052,57502.0,57488.0,0.0008998]
[1725239163728,1.217622,57489.0,57488.0,0.0008998]
[1725239163941,1.74872089,57489.0,57488.0,0.0008998]
[1725239164202,1.84872089,57489.0,57488.0,0.0008998]
[1725239164426,1.87172089,57489.0,57488.0,0.0008998]
[1725239165187,1.50222389,57489.0,57488.0,0.0008998]
[1725239165951,1.57891441,57489.0,57488.0,0.0008998]
[1725239167323,1.92680641,57489.0,57488.0,0.0008998]
[1725239167534,2.63454241,57489.0,57488.0,0.0008998]
[1725239167748,2.63954241,57489.0,57488.0,0.0008998]
[1725239167963,2.54835841,57489.0,57488.0,0.0008998]
[1725239168850,1.222856,57478.0,57477.0,0.0008998]
[1725239169082,3.38396878,57478.0,57477.0,0.0008998]
[1725239169298,4.36879978,57478.0,57477.0,0.0008998]
[1725239169507,4.20505278,57478.0,57477.0,0.0008998]
[1725239169750,3.85709378,57478.0,57477.0,0.0008998]
[1725239169970,4.07334296,57478.0,57477.0,0.0008998]
[1725239170427,4.10064731,57478.0,57477.0,0.0008998]
[1725239170646,4.44860631,57478.0,57477.0,0.0008998]
[1725239171293,4.40090877,57478.0,57477.0,0.0008998]
[1725239171506,4.23930688,57478.0,57477.0,0.0008998]
[1725239171977,4.44860631,57478.0,57477.0,0.0008998]
[1725239172197,1.222982,57472.0,57464.0,0.009009]
[1725239172422,1.03169389,57465.0,57464.0,0.009009]
[1725239172635,1.47973089,57465.0,57464.0,0.009009]
[1725239173086,1.5300398,57465.0,57464.0,0.009009]
[1725239173304,1.64689336,57465.0,57464.0,0.009009]
[1725239173968,2.8473359,57465.0,57464.0,0.009009]
[1725239174182,2.37277136,57465.0,57464.0,0.009009]
[1725239174392,2.24112936,57465.0,57464.0,0.009009]
[1725239174604,2.2888269,57465.0,57464.0,0.009009]
[1725239175455,1.571252,57462.0,57461.0,0.008998]
[1725239175663,2.797108,57462.0,57461.0,0.008998]
[1725239175875,2.84480554,57462.0,57461.0,0.008998]
[1725239176536,2.75814254,57462.0,57461.0,0.008998]
[1725239177201,2.710445,57462.0,57461.0,0.008998]
[1725239177415,2.87899664,57462.0,57461.0,0.008998]
[1725239177886,2.65879364,57462.0,57461.0,0.008998]
[1725239178129,2.66379364,57462.0,57461.0,0.008998]
[1725239178584,2.71149118,57462.0,57461.0,0.008998]
[1725239180108,1.26499574,57462.0,57461.0,0.008998]
[1725239181014,1.26499574,57462.0,57461.0,0.083998]
[1725239182087,1.26499574,57462.0,57461.0,0.008998]
[1725239183144,1.77111974,57462.0,57461.0,0.008998]
[1725239183835,1.82381728,57462.0,57461.0,0.008998]
[1725239184289,1.99236892,57462.0,57461.0,0.008998]
[1725239185008,1.99236892,57462.0,57451.0,0.0004]
[1725239185009,0.348116,57452.0,57451.0,0.0004]
[1725239185225,0.348116,57452.0,57451.0,1e-06]
[1725239185226,4.32329478,57452.0,57451.0,1e-06]
[1725239185451,0.885412,57444.0,57434.0,0.0957]
[1725239185665,1.49517889,57444.0,57434.0,0.0957]
[1725239185880,1.86634389,57444.0,57434.0,0.0957]
[1725239186500,2.81918789,57444.0,57434.0,0.0957]
[1725239186748,2.77935389,57444.0,57434.0,0.0957]
[1725239186975,2.94790553,57444.0,57434.0,0.0957]
[1725239187199,3.009163,57444.0,57434.0,0.0957]
[1725239187632,3.01592378,57444.0,57434.0,0.0957]
[1725239188502,2.49105,57444.0,57434.0,0.0957]
[1725239188690,2.49605,57444.0,57434.0,0.0957]
[1725239189624,0.99773122,57444.0,57443.0,0.179798]
[1725239189838,0.99773122,57444.0,57443.0,0.181798]
[1725239189839,0.89773122,57444.0,57443.0,0.181798]
[1725239190063,0.89773122,57444.0,57443.0,0.179798]
[1725239190292,1.03201389,57444.0,57443.0,0.179798]
[1725239190757,1.38017889,57444.0,57443.0,0.179798]
[1725239190998,1.51819678,57444.0,57443.0,0.179798]
[1725239191210,1.61819678,57444.0,57443.0,0.179798]
[1725239193349,1.64119678,57444.0,57443.0,0.179798]
[1725239194897,1.48017889,57444.0,57443.0,0.179798]
[1725239195776,0.02731722,57445.0,57444.0,0.0919]
[1725239196023,0.02731722,57445.0,57444.0,0.1675]
[1725239196247,0.02731722,57445.0,57444.0,0.18029253]
[1725239196712,0.02731722,57445.0,57444.0,0.70253953]
[1725239196934,0.348125,57451.0,57446.0,0.1675]
[1725239197156,0.174073,57447.0,57446.0,0.1675]
[1725239197351,0.522219,57447.0,57446.0,0.1675]
[1725239197599,1.30484716,57447.0,57446.0,0.1675]
[1725239198476,1.218577,57444.0,57443.0,0.008998]
[1725239198716,2.41886515,57444.0,57443.0,0.008998]
[1725239199166,2.32008515,57444.0,57443.0,0.008998]
[1725239199845,2.29597915,57444.0,57443.0,0.008998]
[1725239200327,2.57109315,57444.0,57443.0,0.008998]
[1725239200559,2.62348731,57444.0,57443.0,0.008998]
[1725239200770,0.50982089,57435.0,57431.0,0.0975]
[1725239200998,0.527364,57431.0,57430.0,0.008998]
[1725239201224,2.80709389,57431.0,57430.0,0.008998]
[1725239201443,3.07564553,57431.0,57430.0,0.008998]
[1725239201665,3.15346343,57431.0,57430.0,0.008998]
[1725239201884,2.36077143,57431.0,57430.0,0.008998]
[1725239202111,2.36577143,57431.0,57430.0,0.008998]
[1725239203024,2.19721979,57431.0,57430.0,0.008998]
[1725239204361,1.88401979,57431.0,57430.0,0.008998]
[1725239204600,2.46788079,57431.0,57430.0,0.008998]
[1725239205245,1.219043,57422.0,57421.0,0.0975]
[1725239205471,1.52554919,57422.0,57421.0,0.0975]
[1725239205685,1.38064489,57422.0,57421.0,0.0975]
[1725239205916,1.03234689,57422.0,57421.0,0.0975]
[1725239206343,1.40364489,57422.0,57421.0,0.0975]
[1725239206786,0.870745,57422.0,57421.0,0.0975]
[1725239207007,0.522447,57422.0,57421.0,0.1716]
[1725239207439,0.522447,57422.0,57421.0,0.18452068]
[1725239207660,0.174149,57422.0,57421.0,0.18452068]
[1725239208579,0.174149,57422.0,57421.0,0.18652068]
[1725239208817,0.26160189,57430.0,57423.0,0.0803]
[1725239209038,0.51540786,57442.0,57432.0,0.1803]
[1725239209039,0.02732524,57433.0,57432.0,0.1803]
[1725239209283,0.20144024,57433.0,57432.0,0.1803]
[1725239209513,0.54967124,57433.0,57432.0,0.19315938]
[1725239209729,0.54967124,57433.0,57432.0,0.1803]
[1725239209943,0.54967124,57433.0,57432.0,0.19315938]
[1725239210193,0.20144024,57433.0,57432.0,0.19315938]
[1725239210652,0.02732524,57433.0,57432.0,0.19315938]
[1725239210878,0.02732524,57433.0,57432.0,0.36727738]
[1725239211092,0.02732524,57433.0,57432.0,0.19315938]
[1725239212199,0.20144024,57433.0,57432.0,0.19315938]
[1725239212629,0.02732524,57433.0,57432.0,0.19406028]
[1725239213476,0.348204,57438.0,57433.0,0.1004]
[1725239213696,0.174112,57434.0,57433.0,0.1024]
[1725239214331,0.522337,57434.0,57433.0,0.1024]
[1725239215651,0.174112,57434.0,57433.0,0.1024]
[1725239216574,0.522337,57434.0,57433.0,0.1024]
[1725239216798,0.522337,57434.0,57433.0,0.1004]
[1725239217011,0.9676165,57434.0,57433.0,0.1004]
[1725239217441,1.3158415,57434.0,57433.0,0.1004]
[1725239218938,1.218787,57434.0,57433.0,0.1004]
[1725239219168,1.218808,57433.0,57432.0,0.0009009]
[1725239219822,1.24613036,57433.0,57432.0,0.0009009]
[1725239220059,1.26913036,57433.0,57432.0,0.0009009]
[1725239220271,1.77432911,57433.0,57432.0,0.0009009]
[1725239221370,2.63038911,57433.0,57432.0,0.0009009]
[1725239221833,2.73038911,57433.0,57432.0,0.0009009]
[1725239222049,2.56768611,57433.0,57432.0,0.0009009]
[1725239222276,2.57268611,57433.0,57432.0,0.0009009]
[1725239222492,1.567395,57420.0,57414.0,0.0933]
[1725239222719,1.219085,57420.0,57414.0,0.0933]
[1725239222976,1.219085,57420.0,57419.0,0.184498]
[1725239222977,0.522465,57420.0,57419.0,0.184498]
[1725239223188,0.870775,57420.0,57419.0,0.184498]
[1725239223631,1.363992,57420.0,57419.0,0.008998]
[1725239223869,1.368992,57420.0,57419.0,0.008998]
[1725239224095,1.817302,57420.0,57419.0,0.008998]
[1725239224334,0.16160189,57411.0,57406.0,0.008998]
[1725239224540,0.522583,57407.0,57406.0,0.008998]
[1725239224756,0.545583,57407.0,57406.0,0.008998]
[1725239224984,1.242361,57407.0,57406.0,0.008998]
[1725239227442,0.893972,57407.0,57406.0,0.008998]
[1725239227927,0.81244627,57425.0,57414.0,0.175]
[1725239227928,0.1,57419.0,57414.0,0.175]
[1725239228132,0.000819,57422.0,57415.0,0.0774]
[1725239228365,0.000819,57422.0,57416.0,0.0976]
[1725239228589,0.000819,57422.0,57421.0,0.177]
[1725239228809,0.000819,57422.0,57421.0,0.175]
[1725239228810,0.05653835,57422.0,57421.0,0.175]
[1725239229049,0.20891745,57422.0,57421.0,0.175]
[1725239229489,0.55721545,57422.0,57421.0,0.175]
[1725239229713,0.01,57432.0,57421.0,0.175]
[1725239229714,0.29732385,57432.0,57421.0,0.0774]
[1725239229922,0.69645,57434.0,57433.0,0.0774]
[1725239230147,0.870562,57434.0,57433.0,0.0774]
[1725239230361,0.005,57438.0,57433.0,0.0774]
[1725239230362,0.348206,57438.0,57433.0,0.0774]
[1725239230589,0.98836889,57444.0,57433.0,0.0865864]
[1725239230803,0.174099,57439.0,57434.0,0.1002]
[1725239231018,0.4736,57444.0,57434.0,0.1002]
[1725239231244,0.174095,57440.0,57435.0,0.00917526]
[1725239231512,0.4736,57444.0,57436.0,0.1002]
[1725239231513,0.348166,57444.0,57436.0,0.1002]
[1725239231745,0.348968,57447.0,57436.0,0.1761]
[1725239231746,0.000819,57447.0,57436.0,0.1761]
[1725239231972,0.174892,57447.0,57446.0,0.1739]
[1725239232369,0.174892,57447.0,57446.0,0.18301398]
[1725239232370,0.523038,57447.0,57446.0,0.18301398]
[1725239233262,0.174892,57447.0,57446.0,0.18301398]
[1725239233477,0.523038,57447.0,57446.0,0.18301398]
[1725239233690,0.174892,57447.0,57446.0,0.18301398]
[1725239234314,0.623038,57447.0,57446.0,0.18301398]
[1725239234580,0.623038,57447.0,57446.0,0.1739]
[1725239235939,0.274892,57447.0,57446.0,0.1739]
[1725239236157,0.000819,57447.0,57446.0,0.347976]
[1725239236373,0.000819,57447.0,57446.0,0.349976]
[1725239236596,0.000819,57447.0,57446.0,0.70724298]
[1725239236817,0.000819,57447.0,57446.0,0.35908998]
[1725239237035,0.000819,57447.0,57446.0,1.05539598]
[1725239237796,0.000819,57447.0,57446.0,0.70724298]
[1725239238044,0.000819,57447.0,57446.0,0.18301398]
[1725239238045,0.523038,57447.0,57446.0,0.18301398]
[1725239238290,0.871184,57447.0,57446.0,0.18301398]
[1725239238534,0.871184,57447.0,57446.0,0.1739]
[1725239238535,0.523038,57447.0,57446.0,0.1739]
[1725239239026,0.871184,57447.0,57446.0,0.1739]
[1725239239274,0.871184,57447.0,57446.0,0.18301398]
[1725239239497,0.871184,57447.0,57446.0,0.0988]
[1725239239713,0.348177,57442.0,57441.0,0.0922]
[1725239239924,0.870442,57442.0,57441.0,0.0922]
[1725239241351,0.16160189,57445.0,57439.0,0.0753]
[1725239241607,0.522337,57434.0,57433.0,0.0791]
[1725239242171,0.870562,57434.0,57433.0,0.0791]
[1725239242343,0.522337,57434.0,57433.0,0.0791]
[1725239242805,0.870562,57434.0,57433.0,0.0791]
[1725239245205,0.522337,57434.0,57433.0,0.0791]
[1725239245693,1.218896,57429.0,57428.0,0.1791]
[1725239246695,1.218896,57429.0,57422.0,0.002]
[1725239246696,0.522438,57423.0,57422.0,0.0818]
[1725239246922,0.87073,57423.0,57422.0,0.0818]
[1725239247155,0.87073,57423.0,57419.0,0.0009009]
[1725239247156,0.522465,57420.0,57419.0,0.0982009]
[1725239247399,0.870775,57420.0,57419.0,0.0982009]
[1725239248546,0.005,57431.0,57419.0,0.0982009]
[1725239248547,0.174143,57425.0,57419.0,0.0982009]
[1725239248755,0.1,57431.0,57421.0,0.1022]
[1725239248962,0.174144,57424.0,57421.0,0.1022]
[1725239249170,0.174144,57424.0,57423.0,0.002]
[1725239249330,0.174138,57426.0,57425.0,0.002]
[1725239249534,0.174125,57430.0,57429.0,0.18]
[1725239249936,0.174125,57430.0,57429.0,0.18920869]
[1725239251856,0.00368673,57431.0,57430.0,0.1722]
[1725239252230,0.174115,57433.0,57431.0,0.0951]
[1725239252437,0.1,57434.0,57433.0,0.0971]
[1725239252637,0.1,57434.0,57433.0,0.0951]
[1725239252837,0.348192,57440.0,57437.0,0.002]
[1725239253051,0.348192,57440.0,57433.0,0.1042864]
[1725239253052,0.174094,57440.0,57439.0,0.0951]
[1725239253257,0.870472,57440.0,57439.0,0.0951]
[1725239253469,0.87415873,57440.0,57439.0,0.10425297]
[1725239253874,0.52596973,57440.0,57439.0,0.0951]
[1725239254743,0.62596973,57440.0,57439.0,0.10425297]
[1725239255165,0.17778073,57440.0,57439.0,0.10425297]
[1725239255584,0.52596973,57440.0,57439.0,0.10425297]
[1725239256425,0.17778073,57440.0,57439.0,0.10425297]
[1725239256999,0.00368673,57440.0,57439.0,0.62654497]
[1725239257210,0.000819,57447.0,57446.0,0.694729]
[1725239257382,0.000819,57447.0,57446.0,0.1705]
[1725239257580,0.000819,57447.0,57446.0,0.00911398]
[1725239257581,0.871184,57447.0,57446.0,0.00911398]
[1725239257781,0.523038,57447.0,57446.0,0.00911398]
[1725239258386,0.522229,57446.0,57445.0,0.002]
[1725239258589,0.000819,57447.0,57446.0,0.276576]
[1725239258808,0.000819,57447.0,57446.0,0.70671011]
[1725239259036,0.000819,57447.0,57446.0,1.06397709]
[1725239259208,0.000819,57447.0,57446.0,1.41213009]
[1725239259803,0.174034,57460.0,57459.0,0.0971]
[1725239260216,0.174034,57460.0,57459.0,0.1061416]
[1725239260812,0.004139,57461.0,57459.0,0.1061416]
[1725239261010,0.178172,57461.0,57459.0,0.1061416]
[1725239261472,0.178172,57461.0,57459.0,0.1081416]
[1725239261673,0.274026,57463.0,57459.0,0.1081416]
[1725239261850,0.174028,57462.0,57460.0,0.002]
[1725239262050,0.174028,57462.0,57459.0,0.1061416]
[1725239262347,0.174031,57461.0,57460.0,0.00903604]
[1725239262998,0.174031,57461.0,57460.0,0.00877703]
[1725239263235,0.1,57463.0,57461.0,0.002]
[1725239263447,0.274027,57463.0,57462.0,0.002]
[1725239263708,0.000818,57464.0,57463.0,0.002]
[1725239263938,0.622882,57464.0,57463.0,0.0067645]
[1725239264150,0.348043,57464.0,57463.0,0.002]
[1725239264371,0.522064,57464.0,57463.0,0.002]
[1725239264590,0.522064,57464.0,57463.0,0.0087645]
[1725239265044,0.174021,57464.0,57463.0,0.0087645]
[1725239265257,0.522064,57464.0,57463.0,0.0087645]
[1725239266378,0.174021,57464.0,57463.0,0.0087645]
[1725239266586,0.174018,57466.0,57463.0,0.0087645]
[1725239266792,0.174016,57466.0,57464.0,0.002]
[1725239267006,0.174013,57467.0,57464.0,0.00876033]
[1725239267210,0.174013,57467.0,57465.0,0.0748]
[1725239267403,0.17401,57468.0,57465.0,0.08355615]
[1725239267867,0.1,57472.0,57469.0,0.174005]
[1725239268071,0.347983,57474.0,57466.0,0.0992]
[1725239268284,0.00481627,57471.0,57470.0,0.00673529]
[1725239268493,0.00481627,57471.0,57466.0,0.0992]
[1725239268720,0.174012,57467.0,57466.0,0.0992]
[1725239269129,0.34801,57470.0,57466.0,0.0992]
[1725239269333,0.00481627,57471.0,57466.0,0.0992]
[1725239269965,0.17401,57468.0,57467.0,0.002]
[1725239271440,0.522029,57468.0,57467.0,0.002]
[1725239273878,0.17401,57468.0,57467.0,0.002]
[1725239274085,0.522029,57468.0,57467.0,0.002]
[1725239274924,0.522029,57468.0,57467.0,0.00874781]
[1725239275142,0.347995,57473.0,57468.0,0.002]
[1725239275604,0.173996,57473.0,57469.0,0.18074546]
[1725239275825,0.173998,57472.0,57469.0,0.00673946]
[1725239276464,0.02730471,57476.0,57475.0,0.002]
[1725239276894,0.173978,57479.0,57478.0,0.002]
[1725239276895,0.173976,57479.0,57478.0,0.002]
[1725239277330,0.347944,57481.0,57478.0,0.002]
[1725239277331,0.173973,57481.0,57478.0,0.00870191]
[1725239277567,0.173973,57481.0,57479.0,0.1018]
[1725239277782,0.173973,57481.0,57479.0,0.18619773]
[1725239278200,0.182163,57480.0,57479.0,0.18619773]
[1725239278450,0.00819,57480.0,57479.0,0.18619773]
[1725239278695,0.00819,57480.0,57479.0,0.18419773]
[1725239278940,0.878057,57480.0,57479.0,0.10649773]
[1725239279151,0.53011,57480.0,57479.0,0.10649773]
[1725239279365,0.53011,57480.0,57479.0,0.0998]
[1725239279590,0.20946272,57480.0,57479.0,0.1018]
[1725239279798,0.03548972,57480.0,57479.0,0.28247373]
[1725239280041,0.00819,57480.0,57479.0,0.10849773]
[1725239280478,0.53011,57480.0,57479.0,0.10649773]
[1725239280896,0.53011,57480.0,57479.0,0.1018]
[1725239281554,0.53011,57480.0,57479.0,0.10849773]
[1725239282004,0.00819,57480.0,57479.0,0.10849773]
[1725239282266,0.00819,57480.0,57479.0,0.18349773]
[1725239282469,0.00819,57480.0,57479.0,0.35747373]
[1725239282719,0.00819,57480.0,57479.0,1.40133273]
[1725239282933,0.00819,57491.0,57490.0,0.523829]
[1725239283150,0.00819,57491.0,57490.0,1.050615]
[1725239283364,0.00819,57491.0,57490.0,1.05726685]
[1725239283587,0.00819,57491.0,57490.0,0.70938085]
[1725239283800,0.00819,57491.0,57490.0,0.35949485]
[1725239284018,0.00819,57491.0,57490.0,0.18755185]
[1725239284251,0.18213,57491.0,57490.0,0.18555185]
[1725239284472,1.14679446,57491.0,57490.0,0.00665185]
[1725239284677,1.14679446,57491.0,57476.0,0.1036]
[1725239284678,0.347948,57480.0,57476.0,0.1036]
[1725239284894,0.173982,57477.0,57476.0,0.1036]
[1725239285149,0.521947,57477.0,57476.0,0.1036]
[1725239285626,0.347951,57480.0,57477.0,0.002]
[1725239285835,0.173979,57478.0,57477.0,0.002]
[1725239286274,0.173979,57478.0,57476.0,0.1036]
[1725239286275,0.173982,57477.0,57476.0,0.1036]
[1725239287639,0.173982,57477.0,57468.0,0.696034]
[1725239287640,0.0521933,57477.0,57469.0,0.0959]
[1725239287867,0.52201,57470.0,57469.0,0.1785]
[1725239288296,0.347973,57476.0,57469.0,0.1785]
[1725239288510,0.173998,57472.0,57470.0,0.002]
[1725239288723,0.174,57471.0,57470.0,0.002]
[1725239289598,0.174,57471.0,57469.0,0.1793998]
[1725239289599,0.174003,57470.0,57469.0,0.1793998]
[1725239289839,0.174003,57470.0,57469.0,0.1813998]
[1725239290055,0.174003,57470.0,57469.0,0.1793998]
[1725239290718,0.174003,57470.0,57469.0,0.18613926]
[1725239290933,0.52201,57470.0,57469.0,0.18613926]
[1725239292510,0.174003,57470.0,57469.0,0.18613926]
[1725239293188,0.52201,57470.0,57469.0,0.18613926]
[1725239293409,0.870017,57470.0,57469.0,0.18613926]
[1725239293627,1.22919947,57470.0,57469.0,0.00763926]
[1725239293836,1.22919947,57470.0,57469.0,0.0008998]
[1725239294023,0.90849471,57470.0,57469.0,0.0008998]
[1725239294314,0.20130524,57470.0,57469.0,0.0008998]
[1725239294561,0.54931224,57470.0,57469.0,0.0008998]
[1725239294803,0.54931224,57470.0,57469.0,0.0028998]
[1725239294991,0.54931224,57470.0,57469.0,0.0008998]
[1725239295276,0.54931224,57470.0,57469.0,0.00763926]
[1725239295506,0.54931224,57470.0,57469.0,0.0008998]
[1725239295922,0.54931224,57470.0,57469.0,0.00763926]
[1725239296138,0.54931224,57470.0,57469.0,0.0008998]
[1725239296355,0.54931224,57470.0,57469.0,0.00763926]
[1725239296574,0.54931224,57470.0,57469.0,0.0028998]
[1725239296786,0.54931224,57470.0,57469.0,0.00763926]
[1725239297003,0.54931224,57470.0,57469.0,0.0008998]
[1725239297213,0.54931224,57470.0,57469.0,0.00963926]
[1725239297423,0.54931224,57470.0,57469.0,0.0028998]
[1725239297652,0.54931224,57470.0,57469.0,0.00763926]
[1725239297879,0.54931224,57470.0,57469.0,0.0008998]
[1725239298297,0.54931224,57470.0,57469.0,0.00763926]
[1725239298480,0.20130524,57470.0,57469.0,0.0028998]
[1725239298689,0.54931224,57470.0,57469.0,0.18733926]
[1725239298899,0.54931224,57470.0,57469.0,0.1785998]
[1725239299135,0.54931224,57470.0,57469.0,0.18533926]
[1725239299997,0.02730224,57470.0,57469.0,0.18733926]
[1725239301314,0.173997,57472.0,57471.0,0.002]
[1725239301525,0.347963,57478.0,57473.0,0.002]
[1725239301757,0.17399,57475.0,57474.0,0.0958]
[1725239301955,0.17399,57475.0,57474.0,0.10251859]
[1725239302372,0.347946,57481.0,57474.0,0.10251859]
[1725239302589,0.37523155,57483.0,57479.0,0.1731]
[1725239302590,0.02730255,57483.0,57479.0,0.1731]
[1725239302809,0.02730255,57483.0,57479.0,1.04967973]
[1725239303050,0.347894,57489.0,57479.0,1.04967973]
[1725239303051,0.173949,57488.0,57479.0,1.04967973]
[1725239303260,0.347894,57489.0,57479.0,1.04967973]
[1725239303261,0.173948,57489.0,57479.0,1.04967973]
[1725239303901,0.17395,57488.0,57479.0,1.04967973]
[1725239304130,0.73124099,57492.0,57479.0,1.39763273]
[1725239304131,0.03548599,57492.0,57479.0,1.39763273]
[1725239304777,0.03548599,57492.0,57479.0,1.404478]
[1725239306547,0.03548599,57492.0,57490.0,0.696529]
[1725239306759,0.03548599,57492.0,57490.0,1.044415]
[1725239306979,0.03548599,57492.0,57490.0,1.05106685]
[1725239306980,0.00819,57492.0,57490.0,1.05106685]
[1725239308028,0.00819,57492.0,57490.0,0.70318085]
[1725239308931,0.00819,57492.0,57490.0,1.39895285]
[1725239309159,0.00819,57492.0,57490.0,1.85183885]
[1725239309383,0.00819,57492.0,57490.0,1.86052643]
[1725239310482,0.00819,57492.0,57490.0,0.45529485]
[1725239310692,0.00819,57492.0,57490.0,0.18135185]
[1725239310919,0.18213,57491.0,57490.0,0.18135185]
[1725239311127,0.00819,57491.0,57490.0,0.18135185]
[1725239311552,0.00819,57491.0,57490.0,0.35529485]
[1725239312255,0.00819,57491.0,57490.0,0.70318085]
[1725239312481,0.00819,57491.0,57490.0,1.05106685]
[1725239315127,0.00819,57491.0,57490.0,1.39895285]
[1725239315336,0.00819,57491.0,57490.0,1.05106685]
[1725239322349,0.00819,57491.0,57490.0,1.39895285]
[1725239322574,0.00819,57491.0,57490.0,1.05606685]
[1725239322777,0.00819,57491.0,57490.0,1.39895285]
[1725239323194,0.00819,57491.0,57490.0,1.40395285]
[1725239323616,0.00819,57491.0,57490.0,1.39895285]
[1725239323824,0.00819,57491.0,57490.0,1.05106685]
[1725239324031,0.00819,57491.0,57490.0,0.52923785]
[1725239324237,0.00819,57491.0,57490.0,1.05106685]
[1725239326787,0.00819,57491.0,57490.0,0.18135185]
[1725239327034,0.00819,57491.0,57490.0,0.27749485]
[1725239328452,0.00819,57491.0,57490.0,0.10355185]
[1725239329371,0.00819,57491.0,57490.0,0.62538085]
[1725239330739,0.00819,57491.0,57490.0,0.97326685]
[1725239330970,0.401686,57505.0,57502.0,0.002]
[1725239330971,0.355986,57505.0,57502.0,0.002]
[1725239331196,0.00819,57505.0,57502.0,0.002]
[1725239331756,0.00819,57505.0,57504.0,0.1759]
[1725239332208,0.00819,57505.0,57504.0,0.18249348]
[1725239334040,0.00819,57505.0,57504.0,0.53029448]
[1725239334254,0.00819,57505.0,57504.0,0.62279448]
[1725239335137,0.00819,57505.0,57504.0,1.55469652]
[1725239335355,0.00819,57505.0,57504.0,1.39239648]
[1725239336271,0.00819,57505.0,57504.0,1.74519748]
[1725239336505,0.000818,57518.0,57517.0,0.869307]
[1725239336723,0.000818,57518.0,57517.0,1.39133]
[1725239336947,0.000818,57518.0,57517.0,1.3978693]
[1725239338345,0.000818,57518.0,57517.0,1.4978693]
[1725239338551,0.000818,57518.0,57517.0,1.5028693]
[1725239339243,0.000818,57518.0,57517.0,1.50954265]
[1725239340242,0.000818,57518.0,57517.0,1.50454265]
[1725239342026,0.000818,57518.0,57517.0,1.50954265]
[1725239342269,0.000818,57518.0,57517.0,1.88026565]
[1725239343457,0.000818,57518.0,57517.0,1.88126565]
[1725239343694,0.000818,57518.0,57517.0,1.88026565]
[1725239344194,0.000818,57518.0,57517.0,1.85726565]
[1725239344455,0.000818,57518.0,57517.0,1.86926565]
[1725239344712,0.00818,57522.0,57519.0,1.39828804]
[1725239344950,0.00818,57522.0,57519.0,2.03309904]
[1725239345194,0.00818,57522.0,57519.0,2.38734101]
[1725239346184,0.00818,57522.0,57521.0,2.094044]
[1725239346422,0.00818,57522.0,57521.0,2.217044]
[1725239346658,0.00818,57522.0,57521.0,2.22356664]
[1725239348449,0.00818,57538.0,57537.0,1.90450904]
[1725239348673,0.00818,57538.0,57537.0,2.00650904]
[1725239348888,0.00818,57538.0,57537.0,2.01296504]